fUSD/lending_fUSD_20240123
["ID","MTS","AMOUNT","RATE_DAILY","PERIOD"]
[312581164,1706025044479,-382.5072126,0.00037797,2]
[312581165,1706025044489,-473.29314073,0.00037797,4]
[312581166,1706025044500,-260.19907905,0.00037797,4]
[312581167,1706025044510,-3935.89563762,0.00037797,4]
[312581168,1706025044519,-1224.40629802,0.00037797,4]
[312581169,1706025044529,-155.0,0.00037797,2]
[312581170,1706025044538,-886.12636499,0.00037797,4]
[312581171,1706025044547,-235.65900379,0.00037798,2]
[312581172,1706025044556,-376.165677,0.00037798,4]
[312581173,1706025044566,-403.36960387,0.00037798,4]
[312581174,1706025044575,-2916.89243027,0.00037798,4]
[312581175,1706025044585,-5773.63343012,0.00037798,4]
[312581176,1706025044594,-1570.25,0.00037808,2]
[312581177,1706025044603,-355.07,0.00037843,2]
[312581178,1706025044613,-241716.60321627,0.0003788,7]
[312581179,1706025044622,-344868.54951776,0.0003788,2]
[312581180,1706025044632,-179.13468914,0.0003788,2]
[312581181,1706025044641,-172.16275919,0.00037897,4]
[312581182,1706025044651,-691.72097675,0.00037897,2]
[312581183,1706025044660,-582.49438921,0.00037897,4]
[312581184,1706025044669,-317.24808781,0.00037898,4]
[312581185,1706025044679,-155.71965949,0.00037898,4]
[312581186,1706025044688,-203.14380127,0.00037898,4]
[312581187,1706025044697,-164.0104164,0.00037898,4]
[312581188,1706025044706,-1060.37719329,0.00037898,4]
[312581189,1706025044715,-153.74812343,0.000379,2]
[312581190,1706025044724,-479379.37849445,0.000379,2]
[312581191,1706025044739,-24319.19620216,0.000379,2]
[312581192,1706025044753,-3704.77177377,0.000379,2]
[312581193,1706025044816,-4976.77047107,0.000379,2]
[312581194,1706025044828,-4758.74190659,0.000379,2]
[312581195,1706025044839,-917.09202498,0.000379,2]
[312581196,1706025044850,-2610.40666984,0.000379,2]
[312581197,1706025044881,-350.01634122,0.000379,2]
[312581198,1706025044901,-2682.22527734,0.000379,2]
[312581199,1706025045299,-4311.92411224,0.000379,2]
[312581200,1706025045311,-3575.67742886,0.000379,2]
[312581201,1706025045322,-1417.98452139,0.000379,2]
[312581202,1706025045334,-1665.84261416,0.000379,2]
[312581203,1706025045345,-288.33039466,0.000379,2]
[312581204,1706025045357,-251.7165,0.000379,2]
[312581205,1706025045376,-355.04,0.000379,2]
[312581206,1706025045388,-4265.39244857,0.000379,2]
[312581207,1706025045431,-69113.68576459,0.000379,2]
[312581208,1706025045442,-1758.93979561,0.000379,2]
[312581209,1706025045453,-509.77495643,0.000379,2]
[312581210,1706025045464,-3254.98910633,0.000379,2]
[312581211,1706025045476,-269.2302333,0.000379,2]
[312581212,1706025045496,-634.66,0.000379,2]
[312581213,1706025045513,-7934.56179113,0.000379,2]
[312581214,1706025045525,-467.17556613,0.000379,2]
[312581215,1706025045536,-10148.12651512,0.000379,2]
[312581229,1706025045881,-16865.09963906,0.000379,2]
[312581230,1706025045890,-1000.0,0.000379,25]
[312581232,1706025045901,-673.68254561,0.00037943,2]
[312581234,1706025045911,-230.08829952,0.00037996,2]
[312581236,1706025045920,-100000.0,0.00038,28]
[312581238,1706025045929,-1396.74209083,0.00038,2]
[312581239,1706025045938,-583.28066234,0.00038,30]
[312581241,1706025045947,-176.47,0.00038096,2]
[312581243,1706025045956,-150.0,0.00038356,2]
[312581245,1706025045965,-155.0,0.0003837,2]
[312581247,1706025045974,-204.0,0.00038427,5]
[312581248,1706025045983,-209.51096968,0.00038436,10]
[312581249,1706025045993,-3397.90075636,0.000385,7]
[312581250,1706025046004,-167.0,0.00038524,2]
[312581251,1706025046013,-360.24556117,0.00038618,9]
[312581252,1706025046022,-1000.0,0.00038626,2]
[312581253,1706025046032,-176.47,0.00038644,2]
[312581254,1706025046041,-673.68254561,0.0003878,2]
[312581255,1706025046051,-12034.38249358,0.0003888,2]
[312581256,1706025046062,-12034.38249354,0.0003888,2]
[312581257,1706025046071,-12034.38249354,0.0003888,2]
[312581258,1706025046080,-12034.38249354,0.0003888,2]
[312581259,1706025046090,-12034.38249354,0.0003888,2]
[312581260,1706025046099,-12034.38249354,0.0003888,2]
[312581261,1706025046108,-5117.54266888,0.000389,15]
[312581262,1706025046117,-172.28,0.000389,7]
[312581263,1706025046126,-402.80401399,0.0003898,2]
[312581264,1706025046135,-47764.00364058,0.00039,29]
[312581265,1706025046147,-52235.99635942,0.00039,29]
[312581266,1706025046156,-190.99536466,0.00039,5]
[312581267,1706025046165,-977.99408202,0.00039,4]
[312581268,1706025046175,-308.57347231,0.00039,5]
[312581269,1706025046185,-800.0,0.00039,3]
[312581270,1706025046195,-10191.33508134,0.00039052,12]
[312581271,1706025046204,-6597.77964092,0.00039052,12]
[312581283,1706025046794,-150.0,0.00036662,2]
[312581284,1706025046804,-150.0,0.00036913,2]
[312581285,1706025046813,-150.0,0.00036957,2]
[312581286,1706025046823,-150.0,0.00037007,2]
[312581287,1706025046832,-150.0,0.00037066,2]
[312581288,1706025046841,-150.0,0.00037218,2]
[312581289,1706025046851,-150.0,0.00037444,2]
[312581290,1706025046860,-150.0,0.00037445,2]
[312581291,1706025046869,-150.0,0.00037456,2]
[312581292,1706025046878,-18.51110187,0.00037457,2]
[312581293,1706025046890,-131.48889813,0.00037457,2]
[312581294,1706025046899,-150.0,0.00037457,2]
[312581295,1706025046908,-150.0,0.00037467,2]
[312581296,1706025046917,-150.0,0.00037473,2]
[312581297,1706025046926,-150.0,0.00037474,2]
[312581298,1706025046934,-150.0,0.00037477,2]
[312581299,1706025046944,-150.0,0.00037478,2]
[312581300,1706025046954,-150.0,0.0003748,2]
[312581301,1706025046963,-150.0,0.00037482,2]
[312581302,1706025046973,-150.0,0.00037484,2]
[312581303,1706025046983,-150.0,0.00037486,2]
[312581304,1706025046992,-150.0,0.00037502,2]
[312581305,1706025047004,-150.0,0.00037509,2]
[312581306,1706025047014,-150.0,0.00037516,2]
[312581307,1706025047023,-150.0,0.00037526,2]
[312581308,1706025047032,-150.0,0.00037551,2]
[312581309,1706025047042,-150.0,0.00037578,2]
[312581310,1706025047051,-150.0,0.00037585,2]
[312581311,1706025047061,-150.0,0.00037604,2]
[312581312,1706025047069,-113.81732743,0.00037625,2]
[312581313,1706025047081,-36.18267257,0.00037625,2]
[312581314,1706025047090,-150.0,0.0003763,2]
[312581315,1706025047099,-150.0,0.00037636,2]
[312581316,1706025047109,-150.0,0.00037651,2]
[312581317,1706025047118,-150.0,0.00037651,2]
[312581318,1706025047127,-150.0,0.00037658,2]
[312581319,1706025047136,-150.0,0.00037661,2]
[312581320,1706025047146,-150.0,0.00037683,2]
[312581321,1706025047156,-150.0,0.00037683,2]
[312581322,1706025047165,-150.0,0.0003769,2]
[312581323,1706025047175,-150.0,0.00037691,2]
[312581324,1706025047189,-12232.9826482,0.00039052,12]
[312581325,1706025047199,-8784.87736371,0.00039052,19]
[312581326,1706025047208,-6660.72200838,0.00039052,12]
[312581327,1706025047218,-5438.66728553,0.00039052,12]
[312581328,1706025047229,-9991.77351933,0.00039052,12]
[312581329,1706025047239,-4049.78632099,0.00039127,12]
[312581330,1706025047248,-176.47,0.00039192,2]
[312581331,1706025047259,-204.0,0.00039198,7]
[312581332,1706025047269,-159.80328826,0.00039272,2]
[312581333,1706025047281,-373.41583691,0.00039272,2]
[312581334,1706025047291,-150.0,0.00039366,2]
[312581335,1706025047301,-218.49463445,0.00039412,4]
[312581336,1706025047311,-559.7820668,0.00039436,30]
[312581337,1706025047349,-150.0,0.00037553,2]
[312581338,1706025047359,-150.0,0.00037592,2]
[312581339,1706025047369,-150.0,0.00037612,2]
[312581340,1706025047379,-403.65550684,0.00039436,30]
[312581341,1706025047391,-49.94866349,0.00039436,30]
[312581342,1706025047400,-624.98713522,0.00039436,120]
[312581343,1706025047410,-179.761479,0.00039452,14]
[312581344,1706025047420,-392.42757575,0.000395,4]
[312581345,1706025047429,-151.10829198,0.0003964,2]
[312581346,1706025047438,-167.0,0.00039681,2]
[312581347,1706025047448,-176.47,0.0003974,2]
[312581348,1706025047457,-155.0,0.0003974,2]
[312581349,1706025047468,-204.0,0.00039968,9]
[312581350,1706025047477,-974.50735032,0.0003999,2]
[312581351,1706025047486,-500.0,0.00039999,30]
[312581352,1706025047496,-607.16753959,0.00039999,30]
[312581353,1706025047507,-500.0,0.00039999,30]
[312581354,1706025047517,-69839.23385226,0.0004,30]
[312581355,1706025047671,-150.0,0.00037484,2]
[312581356,1706025047681,-150.0,0.00037554,2]
[312581357,1706025047691,-150.0,0.00037669,2]
[312581358,1706025047701,-30160.76614774,0.0004,30]
[312581359,1706025047711,-155.24044688,0.0004,3]
[312581360,1706025047722,-155.0,0.0004,3]
[312581361,1706025047732,-155.0,0.0004,2]
[312581362,1706025047742,-302.64410944,0.0004,14]
[312581363,1706025047754,-258.24097453,0.0004,4]
[312581364,1706025047765,-159.04921395,0.0004,4]
[312581365,1706025047774,-18560.94404946,0.0004,15]
[312581366,1706025048281,-4900.4822148,0.0004,15]
[312581367,1706025048308,-150.0,0.00037426,2]
[312581368,1706025048318,-150.0,0.00037516,2]
[312581369,1706025048329,-150.0,0.00037648,2]
[312581370,1706025048339,-64.15776177,0.0004,15]
[312581371,1706025048351,-20064.97821969,0.0004,15]
[312581372,1706025048382,-150.0,0.0003744,2]
[312581373,1706025048393,-150.0,0.00037447,2]
[312581374,1706025048403,-150.0,0.00037554,2]
[312581375,1706025048413,-4271.94504,0.0004,15]
[312581376,1706025049380,-150.0,0.00036929,2]
[312581377,1706025049390,-150.0,0.00037426,2]
[312581378,1706025049401,-150.0,0.00037426,2]
[312581379,1706025049411,-46.28,0.00037435,2]
[312581380,1706025049536,-103.72,0.00037435,2]
[312581381,1706025049545,-150.0,0.00037438,2]
[312581382,1706025049554,-150.0,0.00037442,2]
[312581383,1706025049563,-150.0,0.00037443,2]
[312581384,1706025049573,-150.0,0.00037446,2]
[312581385,1706025049582,-150.0,0.0003745,2]
[312581386,1706025049591,-39.2423729,0.00037462,2]
[312581387,1706025049602,-110.7576271,0.00037462,2]
[312581388,1706025049612,-150.0,0.00037463,2]
[312581389,1706025049622,-150.0,0.00037465,2]
[312581390,1706025049641,-150.0,0.00037466,2]
[312581391,1706025049654,-150.0,0.00037488,2]
[312581392,1706025049664,-150.0,0.00037495,2]
[312581393,1706025049674,-150.0,0.00037496,2]
[312581394,1706025049685,-150.0,0.00037502,2]
[312581395,1706025049694,-150.0,0.00037519,2]
[312581396,1706025049705,-150.0,0.0003752,2]
[312581397,1706025049715,-150.0,0.00037537,2]
[312581398,1706025049725,-150.0,0.00037549,2]
[312581399,1706025049736,-150.0,0.0003755,2]
[312581400,1706025049746,-150.0,0.00037555,2]
[312581401,1706025049758,-150.0,0.00037556,2]
[312581402,1706025049769,-150.0,0.0003756,2]
[312581403,1706025049780,-150.0,0.00037564,2]
[312581404,1706025049790,-150.0,0.00037565,2]
[312581405,1706025049800,-150.0,0.00037581,2]
[312581406,1706025049810,-150.0,0.00037586,2]
[312581407,1706025049821,-150.0,0.00037587,2]
[312581408,1706025050175,-150.0,0.00037588,2]
[312581409,1706025050190,-150.0,0.00037588,2]
[312581410,1706025050199,-150.0,0.0003759,2]
[312581411,1706025050209,-150.0,0.00037593,2]
[312581412,1706025050220,-150.0,0.00037597,2]
[312581413,1706025050231,-150.0,0.00037608,2]
[312581414,1706025050240,-150.0,0.0003761,2]
[312581415,1706025050250,-150.0,0.00037626,2]
[312581416,1706025050260,-150.0,0.00037628,2]
[312581417,1706025050269,-150.0,0.00037635,2]
[312581418,1706025050279,-150.0,0.00037643,2]
[312581419,1706025050288,-150.0,0.00037653,2]
[312581420,1706025050298,-150.0,0.00037656,2]
[312581421,1706025050307,-150.0,0.00037669,2]
[312581422,1706025050316,-150.0,0.00037675,2]
[312581423,1706025050326,-150.0,0.00037678,2]
[312581424,1706025050336,-150.0,0.00037679,2]
[312581425,1706025050345,-150.0,0.00037681,2]
[312581426,1706025050355,-150.0,0.00037682,2]
[312581427,1706025050365,-2348.04491631,0.0004,15]
[312581428,1706025050386,-1878.84,0.0004,15]
[312581429,1706025050452,-473.91843316,0.0004,15]
[312581430,1706025050463,-113167.81105248,0.0004,15]
[312581431,1706025050473,-238.59956798,0.0004,30]
[312581432,1706025050483,-255.0,0.0004,12]
[312581433,1706025050493,-255.0,0.0004,12]
[312581434,1706025050503,-167.78350219,0.0004,12]
[312581435,1706025050513,-172.0,0.0004,14]
[312581436,1706025050522,-255.0,0.0004,12]
[312581437,1706025050532,-255.0,0.0004,12]
[312581438,1706025050545,-255.0,0.0004,12]
[312581439,1706025050555,-383.69687151,0.0004001,15]
[312581440,1706025050565,-1000.0,0.00040041,2]
[312581441,1706025050575,-172.28,0.000401,7]
[312581442,1706025050584,-355.07,0.00040107,2]
[312581443,1706025050593,-176.47,0.00040288,2]
[312581444,1706025050603,-1026.78,0.00040349,15]
[312581445,1706025050613,-150.0,0.00040375,2]
[312581446,1706025050622,-4049.78632099,0.00040536,14]
[312581447,1706025050632,-179.761479,0.00040548,14]
[312581448,1706025050641,-204.0,0.00040739,11]
[312581449,1706025050651,-176.47,0.00040836,2]
[312581450,1706025050661,-167.0,0.00040838,2]
[312581451,1706025050670,-500.0,0.00040999,2]
[312581452,1706025050679,-190.42094481,0.00040999,2]
[312581453,1706025050688,-100000.0,0.00041,31]
[312581454,1706025050698,-1896.10052287,0.00041,15]
[312581455,1706025050708,-850.0,0.00041,3]
[312581456,1706025050718,-150.0,0.00041095,2]
[312581457,1706025050727,-150.0,0.00041095,2]
[312581458,1706025050737,-150.0,0.00041095,2]
[312581459,1706025050747,-150.0,0.00041095,2]
[312581460,1706025050759,-150.0,0.00041095,2]
[312581461,1706025050769,-250.0,0.00041095,2]
[312581462,1706025050779,-1000.0,0.000411,2]
[312581463,1706025050789,-2772.2752314,0.00041236,8]
[312581464,1706025050799,-1434.78485936,0.00041236,8]
[312581465,1706025050809,-489.90052795,0.00041236,7]
[312581466,1706025050819,-260.39327111,0.00041236,4]
[312581467,1706025050828,-520.40990231,0.00041236,7]
[312581468,1706025050838,-283.92953952,0.00041236,7]
[312581469,1706025050847,-184.35413505,0.00041236,8]
[312581470,1706025050857,-1122.77146872,0.00041236,8]
[312581471,1706025050866,-176.40764792,0.00041236,7]
[312581472,1706025050876,-1247.52385413,0.00041236,8]
[312581473,1706025050885,-830.57414947,0.00041236,8]
[312581474,1706025050895,-169.59494079,0.00041236,7]
[312581475,1706025050904,-363.95114206,0.00041236,8]
[312581476,1706025050914,-176.47,0.00041384,2]
[312581477,1706025050923,-150.0,0.00041384,2]
[312581478,1706025050933,-204.0,0.00041509,13]
[312581479,1706025050943,-12034.38249354,0.00041569,3]
[312581480,1706025050953,-179.761479,0.00041644,14]
[312581481,1706025050963,-333.89403109,0.00041684,2]
[312581482,1706025050972,-169.77406402,0.00041775,34]
[312581483,1706025050982,-158.29,0.000419,4]
[312581484,1706025050992,-158.29,0.000419,4]
[312581485,1706025051003,-152.99,0.000419,4]
[312581486,1706025051012,-152.99,0.000419,4]
[312581487,1706025051023,-1203.59,0.000419,4]
[312581488,1706025051032,-1203.59,0.000419,4]
[312581489,1706025051042,-1203.59,0.000419,4]
[312581490,1706025051051,-1203.59,0.000419,4]
[312581491,1706025051068,-1203.59,0.000419,4]
[312581492,1706025051078,-1203.59,0.000419,4]
[312581493,1706025051088,-1203.59,0.000419,4]
[312581494,1706025051098,-1203.59,0.000419,4]
[312581495,1706025051107,-1203.59,0.000419,4]
[312581496,1706025051118,-1203.59,0.000419,4]
[312581497,1706025051127,-1203.59,0.000419,4]
[312581498,1706025051137,-1203.59,0.000419,4]
[312581499,1706025051147,-1203.59,0.000419,4]
[312581500,1706025051156,-1203.59,0.000419,4]
[312581501,1706025051166,-1203.59,0.000419,4]
[312581502,1706025051176,-1203.59,0.000419,4]
[312581503,1706025051186,-1203.59,0.000419,4]
[312581504,1706025051199,-1203.59,0.000419,4]
[312581505,1706025051210,-1203.59,0.000419,4]
[312581506,1706025051221,-1203.59,0.000419,4]
[312581507,1706025051230,-176.47,0.00041932,2]
[312581508,1706025051242,-4049.78632099,0.00041945,16]
[312581509,1706025051252,-533.21912517,0.00041999,5]
[312581510,1706025051262,-55440.14899224,0.00042,32]
[312581511,1706025051277,-555.77588609,0.00042,32]
[312581512,1706025051291,-344.50000044,0.00042,32]
[312581513,1706025051302,-725.19206202,0.00042,32]
[312581514,1706025051314,-1269.51983804,0.00042,32]
[312581515,1706025051413,-2066.80437548,0.00042,32]
[312581516,1706025091757,730.27233577,0.00021,2]
[312581517,1706025098184,1986.99848638,0.00021848,2]
[312581518,1706025159075,150.0,0.00022,2]
[312581519,1706025162409,1009.01077916,0.00023,20]
[312581520,1706025180380,350.02681328,0.00023,20]
[312581521,1706025210669,176.47,0.00022,2]
[312581522,1706025221130,500.0,0.00022,2]
[312581523,1706025224103,1000.0,0.00021983,2]
[312581524,1706025224926,257.2,0.00022,2]
[312581526,1706025265800,16437.37859082,0.00025,30]
[312581527,1706025267394,152.12050193,0.00021967,2]
[312581528,1706025285145,152.87,0.000216,2]
[312581529,1706025289720,687.93,0.000216,2]
[312581530,1706025308584,169.2,0.00021425,2]
[312581531,1706025312766,750.0,0.00021369,2]
[312581532,1706025339363,3177.19,0.00021426,2]
[312581533,1706025349480,250.0,0.00021426,2]
[312581534,1706025362140,500.0,0.00021441,2]
[312581535,1706025390795,920.55,0.00021644,2]
[312581536,1706025399300,23900.0,0.00021422,2]
[312581537,1706025410724,351.75,0.00019504,2]
[312581538,1706025410802,351.75,0.00021768,2]
[312581539,1706025417209,1614.14,0.00021408,2]
[312581540,1706025422630,167.78,0.00021478,2]
[312581541,1706025430821,2000.0,0.00021408,2]
[312581542,1706025437156,1193.41,0.00021408,2]
[312581543,1706025444767,1159.79,0.00021489,2]
[312581544,1706025481799,250.0,0.00021918,2]
[312581545,1706025568464,250.7882,0.00021977,2]
[312581546,1706025586012,362.07153595,0.00022,2]
[312581547,1706025591000,1852.42,0.0002135,2]
[312581548,1706025591119,3147.59141379,0.00022,2]
[312581549,1706025595067,1061.91205477,0.00022,2]
[312581550,1706025595778,164.89,0.00021517,2]
[312581551,1706025596945,487.54545682,0.00022,2]
[312581552,1706025601921,1204.78221347,0.00022,2]
[312581553,1706025602030,247.32726579,0.00022,2]
[312581554,1706025607546,4492.19656681,0.00022,2]
[312581555,1706025610294,281.49567095,0.00022,2]
[312581556,1706025613430,1372.03158576,0.00022,2]
[312581557,1706025615814,248.09579394,0.00021854,2]
[312581558,1706025625416,1051.37036506,0.00022,2]
[312581559,1706025628294,286.48907802,0.00021854,2]
[312581560,1706025630139,1813.68084069,0.00022,2]
[312581561,1706025630519,337.96960043,0.00022,2]
[312581562,1706025641555,500.0,0.00021604,2]
[312581563,1706025659634,659.2547,0.00021977,2]
[312581564,1706025679733,684.4534,0.00021977,2]
[312581565,1706025691855,642.33,0.00021607,2]
[312581566,1706025692186,2438.303,0.00021977,2]
[312581567,1706025740594,200.0,0.00021607,2]
[312581568,1706025768022,-517.06190698,0.00022002,2]
[312581569,1706025768043,-1710.95401307,0.00022003,2]
[312581570,1706025768064,-150.0,0.00022004,2]
[312581571,1706025768085,-150.0,0.00022004,2]
[312581572,1706025768108,-152.12050181,0.00022034,2]
[312581573,1706025768128,-24336.11060326,0.00022068,2]
[312581574,1706025768154,-7197.75297488,0.00022069,2]
[312581575,1706025778894,679.2823,0.00021977,2]
[312581576,1706025789955,1061.91205477,0.00022,2]
[312581577,1706025817016,176.47,0.00022,2]
[312581578,1706025826505,979.43084688,0.00022,2]
[312581579,1706025826981,20685.79,0.00021632,2]
[312581580,1706025829347,257.2,0.00022,2]
[312581581,1706025852089,952.505,0.00021977,2]
[312581582,1706025862288,2000.0,0.00021553,2]
[312581583,1706025878339,736.44,0.00021644,2]
[312581584,1706025886598,-155.0,0.00022075,7]
[312581585,1706025888478,330.26,0.00019635,2]
[312581586,1706025889212,330.26,0.00021899,2]
[312581587,1706025906759,1487.24,0.00021571,2]
[312581588,1706025910027,250.0,0.00021918,2]
[312581589,1706025916673,227.70232845,0.00021965,2]
[312581590,1706025920133,1027.45558718,0.00021977,2]
[312581591,1706025949662,-265.75241527,0.00021975,2]
[312581592,1706025949692,-1857.92137233,0.00021975,2]
[312581593,1706025949723,-1813.68084069,0.00021976,2]
[312581594,1706025949754,-20280.09216938,0.00021976,2]
[312581595,1706025949785,-1422.55320233,0.00021976,2]
[312581651,1706026231991,-605.0,0.00021157,2]
[312581652,1706026232010,-2427.84047403,0.00021157,2]
[312581653,1706026232025,-362.07153595,0.00021157,2]
[312581654,1706026232037,-16778.48153658,0.00021157,2]
[312581655,1706026232050,-652.20813979,0.00021158,2]
[312581656,1706026232063,-1854.24120064,0.00021158,2]
[312581657,1706026232076,-203.22538019,0.00021158,2]
[312581658,1706026232091,-385.00214838,0.00021159,2]
[312581659,1706026232106,-517.06190698,0.00021159,2]
[312581660,1706026232120,-3147.59141379,0.00021159,2]
[312581661,1706026232131,-867.95596008,0.00021159,2]
[312581662,1706026232142,-273.07643202,0.0002116,2]
[312581663,1706026232155,-967.75995296,0.0002116,2]
[312581664,1706026232169,-1710.95401307,0.0002116,2]
[312581665,1706026232183,-337.96960043,0.00021161,2]
[312581666,1706026232195,-2614.37433871,0.00021161,2]
[312581667,1706026232208,-20280.09216938,0.00021161,2]
[312581668,1706026232220,-7791.36306763,0.00021161,2]
[312581669,1706026232237,-941.46518137,0.00021162,2]
[312581670,1706026232249,-2904.73184658,0.00021162,2]
[312581671,1706026232262,-265.75241527,0.00021163,2]
[312581672,1706026232274,-2022.3864367,0.00021163,2]
[312581673,1706026232286,-321.16,0.00021168,2]
[312581674,1706026232298,-1354.1497,0.00021869,2]
[312581675,1706026232310,-150.0,0.00021952,2]
[312581676,1706026232322,-6804.65,0.00021952,2]
[312581677,1706026232334,-1000.0,0.00021963,2]
[312581678,1706026232346,-499.99,0.00021965,2]
[312581679,1706026232358,-16571.42166052,0.00021972,2]
[312581680,1706026232370,-388.22,0.00021972,2]
[312581681,1706026232382,-30680.00521904,0.00021973,2]
[312581682,1706026232394,-1810.62441042,0.00021973,2]
[312581683,1706026232406,-150.99,0.00021973,2]
[312581684,1706026232418,-999.99,0.00021973,2]
[312581685,1706026232431,-3067.86,0.00021973,2]
[312581686,1706026232443,-53928.14361169,0.00021975,2]
[312581687,1706026232469,-1000.0,0.00021975,2]
[312581688,1706026232483,-601.42389288,0.00021975,2]
[312581689,1706026232498,-639.29473813,0.00021975,2]
[312581690,1706026232522,-1556.23348518,0.00021975,2]
[312581691,1706026232537,-46188.22091736,0.00021975,2]
[312581692,1706026232551,-2470.0,0.00021975,2]
[312581693,1706026233483,-673.29832,0.00021975,2]
[312581694,1706026233569,-770.0,0.00021975,2]
[312581700,1706026238028,-941.46518137,0.00021156,2]
[312581701,1706026238037,-2181.525,0.00021875,2]
[312581702,1706026238047,-12260.40352525,0.00021975,2]
[312581703,1706026238056,-490.22675021,0.00021975,2]
[312581704,1706026238065,-14900.36082871,0.00021976,2]
[312581705,1706026238075,-245.60070442,0.00021976,2]
[312581706,1706026238084,-52980.36791282,0.00021977,2]
[312581707,1706026238094,-155.0,0.00022075,2]
[312581708,1706026238103,-486.44925414,0.00022075,2]
[312581709,1706026238112,-1216.9712075,0.00022075,2]
[312581710,1706026238121,-2615.46204267,0.00022075,2]
[312581711,1706026238130,-883.73608647,0.00022075,2]
[312581712,1706026238140,-1050.022241,0.00022075,2]
[312581713,1706026238149,-1059.25794789,0.00022075,2]
[312581714,1706026238158,-199.1732315,0.00022075,2]
[312581715,1706026238167,-155.09797797,0.00022075,2]
[312581716,1706026238177,-875.56427091,0.00022075,2]
[312581717,1706026238186,-155.0,0.00022075,2]
[312581718,1706026238195,-196.82515123,0.00022075,2]
[312581719,1706026238205,-169.9432632,0.00022075,2]
[312581720,1706026238214,-301.25336037,0.00022075,2]
[312581721,1706026238223,-504.21645281,0.00022075,2]
[312581722,1706026238232,-3591.43127721,0.00022076,2]
[312581723,1706026238242,-622.17405158,0.00022079,2]
[312581724,1706026238251,-490.22675019,0.00022107,2]
[312581725,1706026238260,-200.0,0.000222,8]
[312581726,1706026238269,-490.22675019,0.00022239,2]
[312581727,1706026238278,-500.0,0.000223,8]
[312581728,1706026238287,-490.22675019,0.00022371,2]
[312581729,1706026238296,-50194.985,0.000224,2]
[312581730,1706026238306,-700.0,0.000224,8]
[312581731,1706026238315,-736.44,0.00022445,2]
[312581732,1706026238324,-159.28,0.00022471,2]
[312581733,1706026238333,-362.61066741,0.000225,2]
[312581734,1706026238343,-11236.34997035,0.000225,2]
[312581735,1706026238352,-1000.0,0.000225,8]
[312581736,1706026238361,-490.22675019,0.00022504,2]
[312581737,1706026238370,-150.0,0.00022548,2]
[312581738,1706026238380,-176.47,0.00022548,2]
[312581739,1706026238389,-1300.0,0.000226,8]
[312581740,1706026238400,-490.22675019,0.00022636,2]
[312581741,1706026238409,-200.0,0.000227,8]
[312581742,1706026238418,-490.22675019,0.00022768,2]
[312581743,1706026238428,-538.7113452,0.00022768,2]
[312581744,1706026238437,-492.83979718,0.00022768,2]
[312581745,1706026238446,-200.0,0.000228,8]
[312581746,1706026238455,-226.6738175,0.0002289,2]
[312581747,1706026238465,-558.20785079,0.0002289,2]
[312581748,1706026238474,-151.12841012,0.0002289,2]
[312581749,1706026238483,-226.67381748,0.00022895,2]
[312581750,1706026238494,-12682.5809,0.00022898,2]
[312581751,1706026238503,-53145.6151,0.00022899,2]
[312581752,1706026238513,-16217.1205104,0.000229,2]
[312581753,1706026238522,-26764.82697195,0.000229,2]
[312581754,1706026238532,-195.10400093,0.000229,2]
[312581755,1706026238542,-185.00571935,0.000229,2]
[312581756,1706026238551,-55555.0,0.000229,2]